[Event "*** Titled Tuesday Blitz"]
[Site "Chess.com"]
[Date "2020.04.21"]
[Round "9"]
[White "BillieKimbah"]
[Black "LiemLe"]
[Result "1-0"]
[WhiteElo "2852"]
[BlackElo "2995"]
[TimeControl "180+1"]
[EndTime "11:50:49 PDT"]
[Termination "BillieKimbah won on time"]

1. d4 {[%clk 0:03:00.9]} 1... Nf6 {[%clk 0:02:59.5]} 2. c4 {[%clk 0:03:01.1]}
2... e6 {[%clk 0:02:59.6]} 3. Nf3 {[%clk 0:03:01.5]} 3... b6 {[%clk 0:02:59.7]}
4. g3 {[%clk 0:03:00.8]} 4... Bb7 {[%clk 0:02:59.9]} 5. Bg2 {[%clk 0:03:00.6]}
5... g6 {[%clk 0:03:00.5]} 6. Nc3 {[%clk 0:02:57.2]} 6... Bg7 {[%clk 0:02:59.2]}
7. Qc2 {[%clk 0:02:56.4]} 7... d5 {[%clk 0:02:57.1]} 8. cxd5 {[%clk 0:02:55.8]}
8... exd5 {[%clk 0:02:58]} 9. O-O {[%clk 0:02:55.4]} 9... O-O {[%clk 0:02:57.8]}
10. Bf4 {[%clk 0:02:53.4]} 10... c6 {[%clk 0:02:46.2]} 11. Ne5 {[%clk
0:02:48.1]} 11... Nbd7 {[%clk 0:02:44.6]} 12. Rad1 {[%clk 0:02:46.7]} 12... Nh5
{[%clk 0:02:36.3]} 13. Nxd7 {[%clk 0:02:46.7]} 13... Qxd7 {[%clk 0:02:37.2]} 14.
Bc1 {[%clk 0:02:46]} 14... Rad8 {[%clk 0:02:31.2]} 15. e4 {[%clk 0:02:32.3]}
15... dxe4 {[%clk 0:02:24.4]} 16. Nxe4 {[%clk 0:02:33.2]} 16... h6 {[%clk
0:02:11.2]} 17. h3 {[%clk 0:02:18.5]} 17... f5 {[%clk 0:02:10]} 18. Nc3 {[%clk
0:02:17.7]} 18... Qf7 {[%clk 0:02:01.4]} 19. Qa4 {[%clk 0:02:12.1]} 19... f4
{[%clk 0:01:45.7]} 20. gxf4 {[%clk 0:01:46.4]} 20... Nxf4 {[%clk 0:01:39.2]} 21.
Bxf4 {[%clk 0:01:45.7]} 21... Qxf4 {[%clk 0:01:40.1]} 22. Qxa7 {[%clk
0:01:43.9]} 22... Rd7 {[%clk 0:01:16.8]} 23. Ne2 {[%clk 0:01:25.5]} 23... Qc7
{[%clk 0:01:07.2]} 24. Qa4 {[%clk 0:01:24.8]} 24... Re7 {[%clk 0:00:53.2]} 25.
Rd2 {[%clk 0:01:22.9]} 25... Kh7 {[%clk 0:00:49.8]} 26. Qc2 {[%clk 0:01:20.4]}
26... Qd6 {[%clk 0:00:38.4]} 27. a3 {[%clk 0:01:17]} 27... Qf6 {[%clk 0:00:37]}
28. b4 {[%clk 0:01:14.8]} 28... Rd8 {[%clk 0:00:27]} 29. a4 {[%clk 0:01:11.7]}
29... Ba6 {[%clk 0:00:24.8]} 30. Rc1 {[%clk 0:01:00.7]} 30... Qg5 {[%clk
0:00:16.7]} 31. Rcd1 {[%clk 0:00:42.7]} 31... Rd6 {[%clk 0:00:15.4]} 32. Ng3
{[%clk 0:00:38]} 32... Qf4 {[%clk 0:00:14.5]} 33. Ne4 {[%clk 0:00:34.9]} 33...
Rde6 {[%clk 0:00:13.4]} 34. f3 {[%clk 0:00:30.1]} 34... h5 {[%clk 0:00:10.8]}
35. d5 {[%clk 0:00:26.9]} 35... cxd5 {[%clk 0:00:11.1]} 36. Rxd5 {[%clk
0:00:27.8]} 36... Bh6 {[%clk 0:00:11.4]} 37. Rd7 {[%clk 0:00:25.2]} 37... Bb7
{[%clk 0:00:10.6]} 38. Qc4 {[%clk 0:00:16.4]} 38... Qe5 {[%clk 0:00:06.8]} 39.
a5 {[%clk 0:00:07.9]} 39... bxa5 {[%clk 0:00:06.2]} 40. bxa5 {[%clk 0:00:08.8]}
40... Bxe4 {[%clk 0:00:06]} 41. fxe4 {[%clk 0:00:07.3]} 41... Be3+ {[%clk
0:00:05.8]} 42. Kh1 {[%clk 0:00:07.5]} 42... Kh6 {[%clk 0:00:06.1]} 43. a6
{[%clk 0:00:07.4]} 43... Rxd7 {[%clk 0:00:06]} 44. Rxd7 {[%clk 0:00:06.8]} 44...
Rf6 {[%clk 0:00:06.4]} 45. Rd1 {[%clk 0:00:06.4]} 45... Rf2 {[%clk 0:00:05.5]}
46. Qd3 {[%clk 0:00:06.2]} 46... Qg3 {[%clk 0:00:05.6]} 47. Rg1 {[%clk
0:00:05.8]} 47... Rd2 {[%clk 0:00:05.5]} 48. Qc3 {[%clk 0:00:04.3]} 48... Ra2
{[%clk 0:00:04]} 49. Qh8+ {[%clk 0:00:04.1]} 49... Kg5 {[%clk 0:00:04.5]} 50.
Qd8+ {[%clk 0:00:03.4]} 50... Kh6 {[%clk 0:00:05]} 51. Qf8+ {[%clk 0:00:03.5]}
51... Kh7 {[%clk 0:00:03.8]} 52. Qf7+ {[%clk 0:00:03.7]} 52... Kh6 {[%clk
0:00:04.3]} 53. Qxa2 {[%clk 0:00:03.8]} 53... Bf4 {[%clk 0:00:04.7]} 54. Bf1
{[%clk 0:00:03.3]} 54... Qe3 {[%clk 0:00:02]} 55. Qg2 {[%clk 0:00:03.9]} 55...
g5 {[%clk 0:00:01.3]} 56. h4 {[%clk 0:00:04.2]} 56... g4 {[%clk 0:00:01.3]} 57.
e5 {[%clk 0:00:04.8]} 1-0

[Event "*** Titled Tuesday Blitz"]
[Site "Chess.com"]
[Date "2020.04.21"]
[Round "9"]
[White "Munkhzul_Turmunkh"]
[Black "Witik"]
[Result "1-0"]
[WhiteElo "2543"]
[BlackElo "2690"]
[TimeControl "180+1"]
[EndTime "11:50:50 PDT"]
[Termination "Munkhzul_Turmunkh won on time"]

1. e4 {[%clk 0:03:00.9]} 1... c6 {[%clk 0:02:59.4]} 2. d4 {[%clk 0:03:00.6]}
2... d5 {[%clk 0:02:59.2]} 3. e5 {[%clk 0:03:00.7]} 3... Bf5 {[%clk 0:02:59]} 4.
Nf3 {[%clk 0:03:00.8]} 4... e6 {[%clk 0:02:59.4]} 5. Be2 {[%clk 0:03:01.1]} 5...
Bg6 {[%clk 0:02:59.4]} 6. O-O {[%clk 0:03:00.9]} 6... Nh6 {[%clk 0:03:00.1]} 7.
Nbd2 {[%clk 0:02:57.8]} 7... Nf5 {[%clk 0:02:59.6]} 8. Nb3 {[%clk 0:02:58.1]}
8... Nd7 {[%clk 0:02:59]} 9. c3 {[%clk 0:02:58]} 9... Be7 {[%clk 0:02:58.7]} 10.
Bf4 {[%clk 0:02:57.5]} 10... O-O {[%clk 0:02:58.2]} 11. Rc1 {[%clk 0:02:57.3]}
11... Qb6 {[%clk 0:02:13.1]} 12. h3 {[%clk 0:02:48]} 12... c5 {[%clk 0:02:05.9]}
13. g4 {[%clk 0:02:40.8]} 13... Nh4 {[%clk 0:02:05.4]} 14. Nxh4 {[%clk
0:02:20.8]} 14... Bxh4 {[%clk 0:02:06.3]} 15. dxc5 {[%clk 0:02:21.1]} 15... Nxc5
{[%clk 0:02:03.3]} 16. Be3 {[%clk 0:02:21.4]} 16... Be7 {[%clk 0:02:02.4]} 17.
f4 {[%clk 0:02:13.5]} 17... Be4 {[%clk 0:01:54.7]} 18. Nxc5 {[%clk 0:02:10]}
18... Bxc5 {[%clk 0:01:54.3]} 19. Bxc5 {[%clk 0:02:10.9]} 19... Qxc5+ {[%clk
0:01:54.6]} 20. Qd4 {[%clk 0:02:11.5]} 20... Qa5 {[%clk 0:01:33.8]} 21. f5
{[%clk 0:02:04.4]} 21... Qxa2 {[%clk 0:01:29]} 22. Qd2 {[%clk 0:01:44.9]} 22...
exf5 {[%clk 0:01:13.5]} 23. gxf5 {[%clk 0:01:45.8]} 23... Rfe8 {[%clk
0:01:03.7]} 24. Ra1 {[%clk 0:01:17.3]} 24... Qb3 {[%clk 0:01:01.7]} 25. Ra3
{[%clk 0:01:17.3]} 25... Qb6+ {[%clk 0:01:01.2]} 26. Qd4 {[%clk 0:01:17.6]}
26... Qh6 {[%clk 0:00:54.5]} 27. Kh2 {[%clk 0:01:12]} 27... Qg5 {[%clk
0:00:33.6]} 28. Rf2 {[%clk 0:00:39.6]} 28... Bxf5 {[%clk 0:00:24.1]} 29. Qxd5
{[%clk 0:00:39]} 29... Bg6 {[%clk 0:00:16.1]} 30. Ra5 {[%clk 0:00:32.7]} 30...
Rad8 {[%clk 0:00:12.8]} 31. Qb5 {[%clk 0:00:21.8]} 31... b6 {[%clk 0:00:11.8]}
32. Rxa7 {[%clk 0:00:20.8]} 32... Rxe5 {[%clk 0:00:10.6]} 33. Qxb6 {[%clk
0:00:19.5]} 33... Rde8 {[%clk 0:00:09.2]} 34. Bf1 {[%clk 0:00:17]} 34... Qh4
{[%clk 0:00:07]} 35. Qd4 {[%clk 0:00:15.5]} 35... Re4 {[%clk 0:00:04.6]} 36. Qc5
{[%clk 0:00:15.9]} 36... h6 {[%clk 0:00:04.1]} 37. b4 {[%clk 0:00:14.5]} 37...
Rf4 {[%clk 0:00:04.4]} 38. Raa2 {[%clk 0:00:14.1]} 38... Rxf2+ {[%clk
0:00:04.2]} 39. Rxf2 {[%clk 0:00:12.3]} 39... Kh7 {[%clk 0:00:04.2]} 40. b5
{[%clk 0:00:12.3]} 40... Re6 {[%clk 0:00:03.9]} 41. b6 {[%clk 0:00:12.4]} 41...
Qd8 {[%clk 0:00:03.4]} 42. Qc7 {[%clk 0:00:10.4]} 42... Qd6+ {[%clk 0:00:02.2]}
43. Qxd6 {[%clk 0:00:09.8]} 43... Rxd6 {[%clk 0:00:03.1]} 44. b7 {[%clk
0:00:09.8]} 44... Rb6 {[%clk 0:00:02]} 45. Bg2 {[%clk 0:00:10.5]} 45... f6
{[%clk 0:00:01.9]} 46. c4 {[%clk 0:00:11]} 46... Be8 {[%clk 0:00:01.9]} 47. c5
{[%clk 0:00:11.2]} 47... Rb4 {[%clk 0:00:02.2]} 48. Re2 {[%clk 0:00:11.2]} 48...
Bd7 {[%clk 0:00:01.6]} 49. Rd2 {[%clk 0:00:11.5]} 49... Be6 {[%clk 0:00:01.9]}
50. Rd8 {[%clk 0:00:11.3]} 1-0

[Event "*** Titled Tuesday Blitz"]
[Site "Chess.com"]
[Date "2020.04.21"]
[Round "9"]
[White "1977Ivan"]
[Black "JoakimVonAnd"]
[Result "1-0"]
[WhiteElo "2695"]
[BlackElo "2520"]
[TimeControl "180+1"]
[EndTime "11:50:50 PDT"]
[Termination "1977Ivan won by resignation"]

1. e4 {[%clk 0:03:00.9]} 1... c6 {[%clk 0:02:58.7]} 2. d4 {[%clk 0:03:00.2]}
2... d5 {[%clk 0:02:59.6]} 3. e5 {[%clk 0:03:00.7]} 3... Bf5 {[%clk 0:02:59.1]}
4. h4 {[%clk 0:03:01]} 4... h5 {[%clk 0:02:58.4]} 5. Bg5 {[%clk 0:03:00.8]} 5...
Qb6 {[%clk 0:02:57.1]} 6. Bd3 {[%clk 0:03:01.2]} 6... Bxd3 {[%clk 0:02:53.9]} 7.
Qxd3 {[%clk 0:03:01.6]} 7... e6 {[%clk 0:02:53.8]} 8. Nd2 {[%clk 0:03:00.6]}
8... c5 {[%clk 0:02:52.1]} 9. c4 {[%clk 0:02:59]} 9... Nc6 {[%clk 0:02:48.9]}
10. Ngf3 {[%clk 0:02:45]} 10... Qxb2 {[%clk 0:02:45.4]} 11. O-O {[%clk
0:02:34.1]} 11... Nb4 {[%clk 0:02:44.3]} 12. Qe2 {[%clk 0:02:29.9]} 12... cxd4
{[%clk 0:02:42.8]} 13. cxd5 {[%clk 0:02:23.2]} 13... Nxd5 {[%clk 0:02:33.9]} 14.
Rab1 {[%clk 0:02:16.1]} 14... Nc3 {[%clk 0:02:33.2]} 15. Qc4 {[%clk 0:02:13.8]}
15... Nxb1 {[%clk 0:02:28.7]} 16. Rxb1 {[%clk 0:02:13.6]} 16... Qc3 {[%clk
0:02:28.8]} 17. Rxb7 {[%clk 0:02:00.3]} 17... Qxc4 {[%clk 0:02:27.8]} 18. Nxc4
{[%clk 0:02:00.9]} 18... Be7 {[%clk 0:02:27.1]} 19. Nxd4 {[%clk 0:01:59.5]}
19... Kf8 {[%clk 0:02:23]} 20. Nd6 {[%clk 0:01:54.9]} 20... Bxd6 {[%clk
0:02:12.2]} 21. exd6 {[%clk 0:01:53.8]} 21... Nf6 {[%clk 0:02:12.8]} 22. d7
{[%clk 0:01:47.3]} 22... Ke7 {[%clk 0:02:06.8]} 23. Nc6+ {[%clk 0:01:44.8]}
23... Kd6 {[%clk 0:02:06.5]} 24. d8=Q+ {[%clk 0:01:43.3]} 24... Raxd8 {[%clk
0:02:06.6]} 25. Nxd8 {[%clk 0:01:43.7]} 25... Rxd8 {[%clk 0:02:07.5]} 26. Bxf6
{[%clk 0:01:25.4]} 26... gxf6 {[%clk 0:02:03.7]} 27. Rxa7 {[%clk 0:01:25.8]}
27... Rb8 {[%clk 0:01:58.9]} 28. Rxf7 {[%clk 0:01:23.4]} 28... Rb1+ {[%clk
0:01:58.6]} 29. Kh2 {[%clk 0:01:22.7]} 29... Rb2 {[%clk 0:01:59]} 30. Rxf6
{[%clk 0:01:22.2]} 30... Rxa2 {[%clk 0:01:58.2]} 31. f3 {[%clk 0:01:18.9]} 31...
Ke7 {[%clk 0:01:56]} 32. Rh6 {[%clk 0:01:18]} 32... Ra5 {[%clk 0:01:56.1]} 33.
Kg3 {[%clk 0:01:17.9]} 33... Kf7 {[%clk 0:01:56.3]} 34. Kf4 {[%clk 0:01:17.3]}
34... Ra4+ {[%clk 0:01:54.9]} 35. Kg3 {[%clk 0:01:14.1]} 35... Ra5 {[%clk
0:01:53.5]} 36. Kh3 {[%clk 0:01:05.8]} 36... Rb5 {[%clk 0:01:52.1]} 37. g4
{[%clk 0:00:50.4]} 37... hxg4+ {[%clk 0:01:48.7]} 38. Kxg4 {[%clk 0:00:49.2]}
38... Rb4+ {[%clk 0:01:47.2]} 39. Kg3 {[%clk 0:00:48.9]} 39... Rb5 {[%clk
0:01:42.5]} 40. Rh8 {[%clk 0:00:43.3]} 40... Kg7 {[%clk 0:01:40.7]} 41. Rc8
{[%clk 0:00:42.4]} 41... Kf6 {[%clk 0:01:37.2]} 42. Rc6 {[%clk 0:00:41.6]} 42...
Kf5 {[%clk 0:01:35.3]} 43. Rc8 {[%clk 0:00:39]} 43... Kg6 {[%clk 0:01:31.1]} 44.
Rf8 {[%clk 0:00:37.8]} 44... Kg7 {[%clk 0:01:29.7]} 45. Rf4 {[%clk 0:00:37.2]}
45... Kg6 {[%clk 0:01:28.4]} 46. Kg4 {[%clk 0:00:36.5]} 46... Ra5 {[%clk
0:01:23.1]} 47. Re4 {[%clk 0:00:36.4]} 47... Kf6 {[%clk 0:01:22.1]} 48. Rf4+
{[%clk 0:00:31.7]} 48... Kg6 {[%clk 0:01:22]} 49. Re4 {[%clk 0:00:31.7]} 49...
Kf6 {[%clk 0:01:21.5]} 50. h5 {[%clk 0:00:31.9]} 50... Rg5+ {[%clk 0:01:19.9]}
51. Kh4 {[%clk 0:00:31.6]} 51... Rf5 {[%clk 0:01:20.3]} 52. f4 {[%clk
0:00:25.7]} 52... Ra5 {[%clk 0:01:15.6]} 53. Kg4 {[%clk 0:00:23.8]} 53... Ra1
{[%clk 0:01:13.3]} 54. Re3 {[%clk 0:00:24.2]} 54... Rg1+ {[%clk 0:01:12.2]} 55.
Rg3 {[%clk 0:00:24]} 55... Rh1 {[%clk 0:01:12.2]} 56. Rh3 {[%clk 0:00:23.4]}
56... Rg1+ {[%clk 0:01:11.7]} 57. Kf3 {[%clk 0:00:23.4]} 57... Kg7 {[%clk
0:01:11.4]} 58. Rg3+ {[%clk 0:00:20.4]} 58... Rxg3+ {[%clk 0:00:57]} 59. Kxg3
{[%clk 0:00:20.7]} 59... Kf6 {[%clk 0:00:53.5]} 60. Kg4 {[%clk 0:00:20.4]} 60...
Kf7 {[%clk 0:00:25.6]} 61. Kg5 {[%clk 0:00:19.8]} 61... Kg7 {[%clk 0:00:25.6]}
62. h6+ {[%clk 0:00:19]} 62... Kh7 {[%clk 0:00:26]} 63. Kf6 {[%clk 0:00:19]}
63... Kxh6 {[%clk 0:00:26.9]} 64. Kxe6 {[%clk 0:00:19.1]} 64... Kg7 {[%clk
0:00:27.5]} 65. f5 {[%clk 0:00:17]} 65... Kf8 {[%clk 0:00:27.6]} 66. Kf6 {[%clk
0:00:16.7]} 66... Ke8 {[%clk 0:00:27.5]} 67. Kg7 {[%clk 0:00:16.7]} 67... Ke7
{[%clk 0:00:28]} 68. f6+ {[%clk 0:00:17]} 1-0

[Event "*** Titled Tuesday Blitz"]
[Site "Chess.com"]
[Date "2020.04.21"]
[Round "9"]
[White "Egorov_Pavel"]
[Black "Perecke"]
[Result "1/2-1/2"]
[WhiteElo "2337"]
[BlackElo "2157"]
[TimeControl "180+1"]
[EndTime "11:50:51 PDT"]
[Termination "Game drawn by repetition"]

1. d4 {[%clk 0:03:00.9]} 1... d5 {[%clk 0:02:59.6]} 2. c4 {[%clk 0:03:01.3]}
2... e6 {[%clk 0:02:59.3]} 3. Nc3 {[%clk 0:03:01.2]} 3... Nf6 {[%clk 0:02:59]}
4. Bg5 {[%clk 0:03:00.2]} 4... Be7 {[%clk 0:02:58.5]} 5. e3 {[%clk 0:03:00.2]}
5... h6 {[%clk 0:02:57]} 6. Bxf6 {[%clk 0:02:59.9]} 6... Bxf6 {[%clk 0:02:57.9]}
7. cxd5 {[%clk 0:03:00.5]} 7... exd5 {[%clk 0:02:58.2]} 8. Nf3 {[%clk
0:03:00.3]} 8... O-O {[%clk 0:02:56.2]} 9. Bd3 {[%clk 0:03:00.4]} 9... c6 {[%clk
0:02:55.5]} 10. O-O {[%clk 0:03:00.9]} 10... Bg4 {[%clk 0:02:54.4]} 11. b4
{[%clk 0:03:00.8]} 11... Nd7 {[%clk 0:02:52.4]} 12. b5 {[%clk 0:03:00.4]} 12...
c5 {[%clk 0:02:47.3]} 13. Nxd5 {[%clk 0:02:56.2]} 13... cxd4 {[%clk 0:02:40.1]}
14. Nxf6+ {[%clk 0:02:41.1]} 14... Qxf6 {[%clk 0:02:05.7]} 15. exd4 {[%clk
0:02:40.3]} 15... Rfd8 {[%clk 0:01:58.3]} 16. Be4 {[%clk 0:02:27.9]} 16... Nc5
{[%clk 0:01:46.9]} 17. dxc5 {[%clk 0:02:12.9]} 17... Rxd1 {[%clk 0:01:47.8]} 18.
Raxd1 {[%clk 0:02:13]} 18... Qe7 {[%clk 0:01:41.4]} 19. Bd5 {[%clk 0:01:54.5]}
19... Qxc5 {[%clk 0:01:37.8]} 20. Bxb7 {[%clk 0:01:54.7]} 20... Rb8 {[%clk
0:01:32.6]} 21. Bc6 {[%clk 0:01:54.4]} 21... Bxf3 {[%clk 0:01:31]} 22. gxf3
{[%clk 0:01:54.5]} 22... a6 {[%clk 0:01:25.7]} 23. a4 {[%clk 0:01:51.2]} 23...
Qc4 {[%clk 0:01:09.9]} 24. Ra1 {[%clk 0:01:45.8]} 24... axb5 {[%clk 0:00:46.5]}
25. axb5 {[%clk 0:01:45]} 25... Rxb5 {[%clk 0:00:31.3]} 26. Bxb5 {[%clk
0:01:43.7]} 26... Qxb5 {[%clk 0:00:32.2]} 27. Ra3 {[%clk 0:01:29.2]} 27... Qg5+
{[%clk 0:00:29.8]} 28. Kh1 {[%clk 0:01:29.5]} 28... Qc5 {[%clk 0:00:30.3]} 29.
Re3 {[%clk 0:01:28.2]} 29... g6 {[%clk 0:00:29.1]} 30. Rg1 {[%clk 0:01:25.5]}
30... Kg7 {[%clk 0:00:29.2]} 31. Rg4 {[%clk 0:01:22.6]} 31... h5 {[%clk
0:00:25.6]} 32. Rge4 {[%clk 0:01:21.9]} 32... Qc1+ {[%clk 0:00:23.3]} 33. Kg2
{[%clk 0:01:22.1]} 33... Qc5 {[%clk 0:00:20.9]} 34. h4 {[%clk 0:01:18.7]} 34...
Qd6 {[%clk 0:00:14]} 35. Re7 {[%clk 0:00:53.9]} 35... Qf4 {[%clk 0:00:12.4]} 36.
R7e4 {[%clk 0:00:53.8]} 36... Qf5 {[%clk 0:00:11.6]} 37. Kg3 {[%clk 0:00:50.8]}
37... Kh6 {[%clk 0:00:10.7]} 38. Rf4 {[%clk 0:00:49.1]} 38... Qd7 {[%clk
0:00:07.8]} 39. Kg2 {[%clk 0:00:40.5]} 39... Kg7 {[%clk 0:00:04.8]} 40. Ree4
{[%clk 0:00:35.1]} 40... f5 {[%clk 0:00:04]} 41. Rd4 {[%clk 0:00:34.5]} 41...
Qc7 {[%clk 0:00:04.3]} 42. Rc4 {[%clk 0:00:34.1]} 42... Qe5 {[%clk 0:00:03.9]}
43. Rfd4 {[%clk 0:00:31.9]} 43... Kh6 {[%clk 0:00:03.4]} 44. Rd7 {[%clk
0:00:28.8]} 44... Qf6 {[%clk 0:00:02.7]} 45. Kh3 {[%clk 0:00:21.2]} 45... f4
{[%clk 0:00:02.4]} 46. Rcc7 {[%clk 0:00:19.6]} 46... g5 {[%clk 0:00:01.5]} 47.
Rh7+ {[%clk 0:00:17.6]} 47... Kg6 {[%clk 0:00:01.3]} 48. hxg5 {[%clk 0:00:07.2]}
48... Qb2 {[%clk 0:00:01.1]} 49. Rcg7+ {[%clk 0:00:05.3]} 49... Qxg7 {[%clk
0:00:01]} 50. Rxg7+ {[%clk 0:00:04.8]} 50... Kxg7 {[%clk 0:00:01.9]} 51. Kh4
{[%clk 0:00:01.7]} 51... Kg6 {[%clk 0:00:02.8]} 52. Kh3 {[%clk 0:00:01.6]} 52...
Kxg5 {[%clk 0:00:03.7]} 53. Kg2 {[%clk 0:00:02]} 53... Kf5 {[%clk 0:00:03.9]}
54. Kh3 {[%clk 0:00:02.2]} 54... Kg5 {[%clk 0:00:04.3]} 55. Kg2 {[%clk
0:00:02.3]} 55... Kf5 {[%clk 0:00:04.7]} 56. Kh3 {[%clk 0:00:03.2]} 56... Kg5
{[%clk 0:00:05.1]} 1/2-1/2

[Event "*** Titled Tuesday Blitz"]
[Site "Chess.com"]
[Date "2020.04.21"]
[Round "9"]
[White "EddieMarsalla"]
[Black "praveenb2002"]
[Result "1-0"]
[WhiteElo "2559"]
[BlackElo "2698"]
[TimeControl "180+1"]
[EndTime "11:50:58 PDT"]
[Termination "EddieMarsalla won by resignation"]

1. d4 {[%clk 0:03:00.9]} 1... d5 {[%clk 0:02:59.5]} 2. Bg5 {[%clk 0:03:00.8]}
2... Nd7 {[%clk 0:02:57.6]} 3. e3 {[%clk 0:03:00.7]} 3... Ngf6 {[%clk
0:02:57.9]} 4. f4 {[%clk 0:02:58.6]} 4... Ne4 {[%clk 0:02:53.4]} 5. Bh4 {[%clk
0:02:58.4]} 5... c5 {[%clk 0:02:50]} 6. c3 {[%clk 0:02:58.5]} 6... Qb6 {[%clk
0:02:48.9]} 7. Qb3 {[%clk 0:02:57.9]} 7... e6 {[%clk 0:02:41.2]} 8. Nf3 {[%clk
0:02:57.1]} 8... Bd6 {[%clk 0:02:39.2]} 9. Nbd2 {[%clk 0:02:57]} 9... O-O {[%clk
0:02:28.7]} 10. Nxe4 {[%clk 0:02:55.1]} 10... dxe4 {[%clk 0:02:29.6]} 11. Nd2
{[%clk 0:02:55.4]} 11... Qxb3 {[%clk 0:02:22]} 12. axb3 {[%clk 0:02:54.6]} 12...
f5 {[%clk 0:02:22.2]} 13. Bc4 {[%clk 0:02:52.9]} 13... Nb6 {[%clk 0:02:21.4]}
14. O-O {[%clk 0:02:44.4]} 14... Bd7 {[%clk 0:02:18.7]} 15. Ra5 {[%clk
0:02:35.8]} 15... Rfc8 {[%clk 0:02:15.1]} 16. Rfa1 {[%clk 0:02:33.1]} 16... a6
{[%clk 0:02:15]} 17. Bf2 {[%clk 0:02:26.2]} 17... g6 {[%clk 0:02:10.3]} 18. g3
{[%clk 0:02:11.2]} 18... Kf7 {[%clk 0:02:09.1]} 19. Bf1 {[%clk 0:02:09.7]} 19...
Nd5 {[%clk 0:02:05.1]} 20. Nc4 {[%clk 0:02:08.1]} 20... Bc7 {[%clk 0:01:45.8]}
21. dxc5 {[%clk 0:01:54.8]} 21... Bxa5 {[%clk 0:01:41.1]} 22. Nd6+ {[%clk
0:01:54.7]} 22... Kf6 {[%clk 0:01:09.1]} 23. Nxc8 {[%clk 0:01:48.1]} 23... Bc7
{[%clk 0:01:09.2]} 24. Nd6 {[%clk 0:01:41.1]} 24... Bxd6 {[%clk 0:01:09.4]} 25.
cxd6 {[%clk 0:01:42]} 25... Rc8 {[%clk 0:01:09.7]} 26. c4 {[%clk 0:01:39.1]}
26... Nb6 {[%clk 0:00:59.4]} 27. Be1 {[%clk 0:01:37.5]} 27... Rc6 {[%clk
0:00:58.2]} 28. Bc3+ {[%clk 0:01:35.8]} 28... Kf7 {[%clk 0:00:58.4]} 29. Bd4
{[%clk 0:01:34.6]} 29... Rxd6 {[%clk 0:00:34.8]} 30. c5 {[%clk 0:01:34.2]} 30...
Rxd4 {[%clk 0:00:35.3]} 31. exd4 {[%clk 0:01:34.2]} 31... Nd5 {[%clk 0:00:35.9]}
32. Bc4 {[%clk 0:01:29.3]} 32... Bc6 {[%clk 0:00:34.9]} 33. Bxd5 {[%clk
0:01:28.2]} 33... Bxd5 {[%clk 0:00:29.1]} 34. Kf2 {[%clk 0:01:26.2]} 34... Bxb3
{[%clk 0:00:28.9]} 35. c6 {[%clk 0:01:26.6]} 35... bxc6 {[%clk 0:00:23.3]} 36.
Rxa6 {[%clk 0:01:26.8]} 36... Bd5 {[%clk 0:00:23.6]} 37. Ra7+ {[%clk 0:01:27.1]}
37... Kg8 {[%clk 0:00:23.2]} 38. Ke3 {[%clk 0:01:27]} 38... h6 {[%clk
0:00:22.3]} 39. Kd2 {[%clk 0:01:24.3]} 39... Kf8 {[%clk 0:00:18.8]} 40. Kc3
{[%clk 0:01:24.1]} 40... Kg8 {[%clk 0:00:15.7]} 41. Kb4 {[%clk 0:01:18.1]} 41...
e3 {[%clk 0:00:16.2]} 42. Kc3 {[%clk 0:01:16.3]} 42... e2 {[%clk 0:00:16.6]} 43.
Kd2 {[%clk 0:01:16.3]} 43... Bc4 {[%clk 0:00:14.8]} 44. Rc7 {[%clk 0:01:11.9]}
44... Bb5 {[%clk 0:00:15]} 45. Re7 {[%clk 0:01:05]} 45... Bc4 {[%clk 0:00:15]}
46. b3 {[%clk 0:01:02.2]} 46... Bxb3 {[%clk 0:00:15.4]} 47. Kxe2 {[%clk
0:01:02.5]} 47... Kf8 {[%clk 0:00:15.7]} 48. Rc7 {[%clk 0:01:02.4]} 48... Bd5
{[%clk 0:00:15.2]} 49. Kd2 {[%clk 0:01:02.8]} 49... g5 {[%clk 0:00:14.8]} 50.
Kc3 {[%clk 0:01:00.8]} 50... Kg8 {[%clk 0:00:13.6]} 51. Kb4 {[%clk 0:01:00.8]}
51... gxf4 {[%clk 0:00:13.4]} 52. gxf4 {[%clk 0:01:00.4]} 52... h5 {[%clk
0:00:13.9]} 53. Kc5 {[%clk 0:01:00.2]} 53... h4 {[%clk 0:00:14.3]} 54. Kd6
{[%clk 0:00:58.8]} 54... h3 {[%clk 0:00:14.4]} 55. Ke5 {[%clk 0:00:57.5]} 55...
Kf8 {[%clk 0:00:12.5]} 56. Rh7 {[%clk 0:00:56.7]} 56... Kg8 {[%clk 0:00:08.7]}
57. Rxh3 {[%clk 0:00:55.9]} 57... Kg7 {[%clk 0:00:09.2]} 58. Rg3+ {[%clk
0:00:54.8]} 58... Kh6 {[%clk 0:00:09.6]} 59. Rg5 {[%clk 0:00:54.8]} 59... Bc4
{[%clk 0:00:08.6]} 60. h4 {[%clk 0:00:50.7]} 60... Bd5 {[%clk 0:00:08.9]} 61.
Kd6 {[%clk 0:00:50.8]} 61... Kh7 {[%clk 0:00:08.1]} 62. h5 {[%clk 0:00:50.4]}
62... Kh6 {[%clk 0:00:08.4]} 63. Ke7 {[%clk 0:00:49.6]} 63... Bc4 {[%clk
0:00:06.2]} 64. Kf6 {[%clk 0:00:46.7]} 64... Bd5 {[%clk 0:00:06.4]} 65. Ke5
{[%clk 0:00:40.3]} 65... Bc4 {[%clk 0:00:06.7]} 66. Rg6+ {[%clk 0:00:38.6]}
66... Kxh5 {[%clk 0:00:06.6]} 67. Rxe6 {[%clk 0:00:39.1]} 67... Kg4 {[%clk
0:00:02.9]} 68. Rxc6 {[%clk 0:00:38.4]} 68... Ba2 {[%clk 0:00:02.9]} 69. Rg6+
{[%clk 0:00:38.1]} 69... Kf3 {[%clk 0:00:03]} 70. d5 {[%clk 0:00:35.5]} 70...
Ke3 {[%clk 0:00:01.6]} 71. d6 {[%clk 0:00:35]} 1-0